Cogmind - Beta 13 X1 @@@ ROGUE MODE // 2023.08.24 @ 15:13:17 Player: youngster Result: Destroyed by S-10 Pest with Light Assault Rifle Performance ------------- Evolutions (0) 0 Regions Visited (2) 400 Robots Destroyed (25) 125 Value Destroyed (698) 698 Prototype IDs (3) 60 Alien Tech Used (0) 0 Bonus (0) 0 TOTAL SCORE: 1283 Bonus ------- None Cogmind --------- Core Integrity 0/250 Matter 309/450 Energy 100/100 System Corruption 0% Temperature Cool (0) Movement Rolling (175) Ox5 Location -10/Mines Parts ------- > --- POWER (1) -------- (None) > --- PROPULSION (2) --- Compact Wheel > --- UTILITY (2) ------ Huge Storage Unit Large Matter Pod > --- WEAPON (2) ------- EM Pulse Gun EM Pulse Gun > --- INVENTORY (25) --- Light Ion Engine Light Ion Engine Light Treads Medium Matter Pod (100) Seismic Detector Seismic Detector Medium Laser Small Laser Beam Cannon Light Assault Rifle Light Assault Rifle Hammer Peak State ------------ > --- POWER ------------ Light Ion Engine > --- PROPULSION ------- Wheel Compact Wheel > --- UTILITY ---------- Huge Storage Unit Improved Terrain Scanner > --- WEAPON ----------- Medium Laser Light Assault Rifle > --- INVENTORY -------- Light Ion Engine Medium Matter Pod Seismic Detector Seismic Detector EM Pulse Gun EM Pulse Gun Medium Laser Small Laser Beam Cannon Hammer [Rating: 10] Favorites ----------- Power Light Ion Engine Engine Light Ion Engine Propulsion Compact Wheel Treads Light Treads Wheel Compact Wheel Utility Improved Terrain Scanner Device Improved Terrain Scanner Storage Huge Storage Unit Weapon Light Assault Rifle Energy Gun Medium Laser Ballistic Gun Light Assault Rifle Build | -11 -10 -10 ------- Run | Jun Mat Min Slots Evolved . | . . . Power . | . . . Propulsion . | . . . Utility . | . . . Weapon . | . . . Parts Attached 31 | 8 23 . Power 3 | 1 2 . Engine 3 | 1 2 . Core . | . . . Reactor . | . . . Propulsion 12 | 2 10 . Treads 6 | 1 5 . Leg . | . . . Wheel 6 | 1 5 . Hover . | . . . Flight . | . . . Utility 5 | 2 3 . Device 2 | 1 1 . Storage 3 | 1 2 . Processor . | . . . Hackware . | . . . Protection . | . . . Artifact . | . . . Weapon 11 | 3 8 . Energy Gun 8 | 2 6 . Energy Cannon . | . . . Ballistic Gun 3 | 1 2 . Ballistic Cannon . | . . . Launcher . | . . . Special Weapon . | . . . Impact Weapon . | . . . Slashing Weapon . | . . . Piercing Weapon . | . . . Special Melee Weapon . | . . . Unidentified Prototypes . | . . . Parts Lost 9 | . 7 2 Power 2 | . 1 1 Propulsion 3 | . 2 1 Utility 1 | . 1 . Weapon 3 | . 3 . Highest Loss Streak 5 | . 5 2 To Critical Strikes . | . . . Average Slot Usage (%) 98 | . 98 98 Engine 13 | . 13 14 Treads 7 | . 7 . Wheel 20 | . 19 26 Device 11 | . 12 . Storage 16 | . 15 28 Energy Gun 14 | . 13 28 Ballistic Gun 11 | . 13 . Naked Turns . | . . . Heaviest Build 92 | 14 92 92 Greatest Support 40 | 20 40 26 Greatest Overweight (x) 8 | . 8 5 Average Overweight (x) 2 | . 2 3 Largest Inventory Capacity 25 | 8 25 25 Average Capacity 19 | 7 20 25 Most Carried 13 | 6 13 12 Average Carried 7 | 3 7 12 Final Capacity 25 | 8 25 25 Final Carried 12 | 6 12 12 Class Distribution -------------------- 100% | Mutant Dominant Class ---------------- Mutant | -10/Materials Mutant | -10/Mines Resources | -11 -10 -10 ----------- Run | Jun Mat Min Matter Collected 661 | 204 457 . Remotely . | . . . Salvage Created 1013 | 60 953 . Parts 54 | 8 46 . Haulers Intercepted 2 | . 2 . Recyclers Shooed 2 | 1 1 . Parts Field Recycled . | . . . Retrieved Matter . | . . . Parts Self-Destructed . | . . . Prevented . | . . . Kills | -11 -10 -10 ------- Run | Jun Mat Min Combat Hostiles Destroyed 18 | . 18 . Guns 15 | . 15 . AOE 3 | . 3 . Classes Destroyed 5 | 1 4 . Tunneler 3 | 3 . . Hauler 2 | . 2 . Recycler 1 | . 1 . Watcher 1 | . 1 . Grunt 18 | . 18 . Best Kill Streak 3 | 3 3 . Combat Bots Only 3 | . 3 . Max Kills in Single Turn 1 | 1 1 . Gunslinging . | . . . Exploded 1 | . 1 . Melee . | . . . Uniques/NPCs Destroyed . | . . . Combat | -11 -10 -10 -------- Run | Jun Mat Min Damage Taken 1227 | 2 960 265 Core 251 | . 170 81 Absorbed by Shields . | . . . Core Remaining (%) 100 | 100 . . Volleys Fired 90 | 7 83 . Largest 2 | 2 2 . Hottest 90 | 70 90 . Shots Fired 173 | 14 159 . Gun 173 | 14 159 . Cannon . | . . . Launcher . | . . . Special . | . . . Kinetic 92 | 7 85 . Thermal 56 | 7 49 . Explosive . | . . . Electromagnetic 25 | . 25 . Robot Hit Streak 16 | 3 16 . Robot Miss Streak 4 | 1 4 . Penetration Max . | . . . Secondary Targets 1 | . 1 . Max Gunslinging Chain 1 | . 1 . Shots Hit Robots 121 | 10 111 . Core Hits 52 | 6 46 . Critical Kills 1 | . 1 . Critical Parts Destroyed 1 | . 1 . Critical Strikes 6 | . 6 . Burn 4 | . 4 . Destroy 2 | . 2 . Melee Attacks . | . . . Impact . | . . . Slashing . | . . . Piercing . | . . . Sneak Attacks . | . . . Combat Hostiles . | . . . Follow-up Attacks . | . . . Damage Inflicted 1505 | 106 1399 . Guns 1283 | 102 1181 . Cannons . | . . . Explosions 213 | . 213 . Melee . | . . . Ramming 9 | 4 5 . Kinetic 493 | 39 454 . Thermal 764 | 63 701 . Explosive . | . . . Electromagnetic 239 | . 239 . Impact . | . . . Slashing . | . . . Piercing . | . . . Highest Corruption . | . . . Average Corruption . | . . . Corruption Purged . | . . . Corruption Blocked . | . . . Overload Shots . | . . . Overflow Damage . | . . . Projectiles . | . . . Explosions . | . . . Melee . | . . . Knockbacks . | . . . Impact . | . . . Kinetic . | . . . Secondary . | . . . Self-Inflicted Damage 21 | 2 19 . Shots 1 | . 1 . Rammed 4 | 1 3 . Targets Rammed 5 | 1 4 . Kicked . | . . . Crushed 1 | . 1 . Highest Temperature 211 | 50 211 . Average Temperature 57 | 25 60 . Received Heat Transfer 477 | . 456 21 Siege Activations . | . . . Robots Corrupted . | . . . Combat Hostiles . | . . . Parts Fried . | . . . Impact Corruptions . | . . . Robots Melted . | . . . Combat Hostiles . | . . . Parts Melted 2 | . 2 . Heat Transferred 2124 | 185 1939 . Parts Sabotaged . | . . . Parts Stolen . | . . . Parts Stripped . | . . . Power Chain Reactions 3 | . 3 . Missiles Intercepted . | . . . Alert | -11 -10 -10 ------- Run | Jun Mat Min Peak Influence 320 | 15 320 63 Initial 63 | . 9 63 Average 140 | 5 161 61 Maximum Alert Level 1 | . 1 . Low Security (%) 77 | 100 73 100 Level 1 22 | . 26 . Level 2 . | . . . Level 3 . | . . . Level 4 . | . . . Level 5 . | . . . High Security . | . . . Max Security . | . . . Squads Dispatched 6 | . 6 . Investigation 4 | . 4 . Extermination . | . . . Reinforcement 2 | . 2 . Assault . | . . . Garrison . | . . . Intercept . | . . . Searches Triggered . | . . . Construction Impeded . | . . . Haulers Reinforced . | . . . Active Scanning Responses . | . . . Cargo Convoy Interrupts . | . . . Stealth | -11 -10 -10 --------- Run | Jun Mat Min Distress Signals . | . . . Communications Jammed . | . . . Distress Signals . | . . . Times Spotted 37 | . 32 5 Peak Tracking Total 5 | . 5 5 Tactical Retreats 1 | . 1 . Traps | -11 -10 -10 ------- Run | Jun Mat Min Traps Triggered 2 | . 2 . Indirectly . | . . . Trap Hack Attempts . | . . . Triggered . | . . . Disarmed . | . . . Reprogrammed . | . . . Reused . | . . . Traps Extracted . | . . . Installed . | . . . Triggered . | . . . Machines | -11 -10 -10 ---------- Run | Jun Mat Min Machines Disabled . | . . . Max in Single Turn . | . . . Machines Repaired . | . . . Machines Sabotaged . | . . . Overloaded Fab Kills . | . . . Hacking | -11 -10 -10 --------- Run | Jun Mat Min Machines Accessed 8 | . 8 . Terminals 6 | . 6 . Fabricators . | . . . Repair Stations . | . . . Recycling Units 2 | . 2 . Scanalyzers . | . . . Garrison Access . | . . . Total Hacks 26 | . 26 . Successful 12 | . 12 . Failed 14 | . 14 . Catastrophic . | . . . Database Lockouts . | . . . Manual 14 | . 14 . Terminals 24 | . 24 . Fabricators . | . . . Repair Stations . | . . . Recycling Units 2 | . 2 . Scanalyzers . | . . . Garrison Access . | . . . Terminal Hacks 6 | . 6 . Robot Schematic 1 | . 1 . Robot Analysis 1 | . 1 . Prototype ID Bank 2 | . 2 . Locate Traps 2 | . 2 . Fabricator Hacks . | . . . Repair Station Hacks . | . . . Recycling Unit Hacks . | . . . Scanalyzer . | . . . Garrison Access Hacks . | . . . Unauthorized Hacks 6 | . 6 . Terminals 4 | . 4 . Botnet 3 | . 3 . Operators 1 | . 1 . Fabricators . | . . . Repair Stations . | . . . Recycling Units 2 | . 2 . Tunnel 2 | . 2 . Scanalyzers . | . . . Garrison Access . | . . . Data Cores Recovered . | . . . Used . | . . . Hacking Detections 6 | . 6 . Full Trace Events . | . . . Feedback Events . | . . . Feedback Blocked . | . . . Robot Schematics Acquired 1 | . 1 . Robots Built . | . . . Authchips . | . . . Time . | . . . Total Robot Build Rating . | . . . Part Schematics Acquired . | . . . Parts Built . | . . . Authchips . | . . . Time . | . . . Total Part Build Rating . | . . . Parts Repaired . | . . . Time . | . . . Parts Recycled . | . . . Recycled Matter . | . . . Retrieved Matter . | . . . Retrieved Components . | . . . Parts Scanalyzed . | . . . Part Schematics Acquired . | . . . Parts Damaged . | . . . Bothacking | -11 -10 -10 ------------ Run | Jun Mat Min Used RIF Installer . | . . . Robots Hacked . | . . . Non-combat . | . . . Combat . | . . . Robot Hacks Applied . | . . . Relay Couplers Released . | . . . Fabnet Peak Effective % . | . . . Robots Rewired . | . . . Allies Hacked . | . . . Hacks Repelled . | . . . Allies | -11 -10 -10 -------- Run | Jun Mat Min Total Allies . | . . . Largest Group . | . . . Highest-Rated Group . | . . . Highest-Rated Ally . | . . . Total Orders . | . . . Ally Attacks . | . . . Total Damage . | . . . Kills . | . . . Allies Corrupted . | . . . Allies Melted . | . . . Intel | -11 -10 -10 ------- Run | Jun Mat Min Robot Analysis Total 1 | . 1 . Derelict Logs Recovered . | . . . Drone Launches . | . . . Drone Recoveries . | . . . Exploration | -11 -10 -10 ------------- Run | Jun Mat Min Turns Passed 1498 | 111 1254 133 Spaces Moved 799 | 66 645 88 Core 1 | 1 . . Treads 112 | 1 111 . Legs . | . . . Wheels 686 | 64 534 88 Hover . | . . . Flight . | . . . Fastest Speed 50 | 50 100 135 Average Speed 135 | 100 139 137 Slowest Speed 200 | 160 200 175 Overloaded Moves . | . . . Propulsion Burnouts . | . . . Robots Hopped . | . . . Cave-ins Triggered . | . . . Exploration Rate (%) 40 | 5 95 22 Regions Visited 2 Branch Regions 1 Pre-discovered Areas 2 | . 2 . Known Exits Taken . | . . . Unknown Exits Taken 2 | 1 1 . Scrap Searched . | . . . Spaces Dug . | . . . Terrain Destroyed 9 | . 9 . Melee . | . . . Projectile . | . . . AOE 9 | . 9 . Terrain Rammed . | . . . Walls Destroyed . | . . . Machines Disabled . | . . . Actions | -11 -10 -10 --------- Run | Jun Mat Min Total 1042 | 94 848 100 Wait 100 | 7 81 12 Move 797 | 65 644 88 Hop . | . . . Pick Up 18 | 6 12 . Fast Attach 8 | 7 1 . Attach 6 | . 6 . Detach . | . . . Swap 17 | 1 16 . Drop 1 | . 1 . Fire 90 | 7 83 . Melee . | . . . Ram 1 | 1 . . Kick . | . . . Crush 4 | . 4 . Escape Stasis . | . . . Rewire . | . . . Trap . | . . . Miscellaneous . | . . . Route ------- -11/Junkyard -10/Materials (discovered 5 exits: [*Mat x3] / [*Min x2]) -10/Mines (discovered 1 exit: [*Mat]) History --------- Turn | Location | Event 33 | -11/Junkyard | Discovered new exit (range 13) 112 | -11/Junkyard | Entered Materials 253 | -10/Materials | Discovered new exit (range 13) 308 | -10/Materials | Build established: Mutant 529 | -10/Materials | Lost 5 parts (1p2n2w) 548 | -10/Materials | Discovered new exit (range 16) 642 | -10/Materials | Discovered new exit (range 8) 801 | -10/Materials | Core integrity fell below 50% 826 | -10/Materials | Discovered new exit (range 15) 1135 | -10/Materials | Discovered new exit (range 5) 1366 | -10/Materials | Entered Mines 1380 | -10/Mines | Discovered new exit (range 15) 1479 | -10/Mines | Core integrity fell below 20% 1494 | -10/Mines | Assembled infested the area 1499 | -10/Mines | Destroyed by S-10 Pest with Light Assault Rifle Last Messages --------------- DISCOVERED[-7/Factory] 01329_ ALERT: Suspicious activity at Recycling Unit M002. Dispatching Investigation squad. 01343_ Chain reaction triggered in Ion Engine. 01343_ G-34 Mercenary destroyed. 01362_ Acquired 25 matter. LOCATION=UNKNOWN GOAL=ESCAPE Something is scanning the area. 01367_ K-01 Serf collects debris. 01368_ K-01 Serf cleans the Seismic Survey Station. 01374_ K-01 Serf collects debris. 01380_ EXIT=FOUND 01403_ K-01 Serf collects debris. 01489_ Wheel destroyed. 01489_ K-01 Serf collects debris. 01490_ Ion Engine destroyed. 01492_ K-01 Serf collects debris. 01494_ ALERT: Infestation in the mines, dispatching Demolisher response squad. Map ----- +----------------------------------------------------+ | ???????????????????????????????????????????? | | ???????????????????????????????????????????? | | ???????????????????????????????????????????? | | ???????????????????????????????????????????? | | ???????????????????????????????????????????? | | ???????????????????????????????????????????? | | ???????????????????????????????????????????? | | ???????????????????????????????????????????? | | ???????????????????????????????????????????? | | ???????????????????????????????????????????? | | ???????????????????????????????????????????? | | ???????????????????????????????????????????? | | ???????????????????????????????????????????? | | ???????????????????????????????????????????? | | ???????????????????????????????????????????? | | ???????????????????????????????????????????? | | ??????? ?????????????????????????????????? | | ??????? ?????????????????????????????????? | | ??????? ????????????????????????????????? | | ??????# ?????????????????????????????????? | | ??????# ??????????????????##?????????????? | | ?????## ????###?????????? ??????????????? | | ????## ???##/##????????? ???????????????? | | ????# #???# #???????? #???????????????? | | ????? #???# = #???##### #???????????????? | | ????? #??## !#???# ss@ #???????????????? | | ?????? #?## = ##### ### #???????????????? | | ??????# #?# #?? #???????????????? | | ??????# ### #??? ???????????????? | | ??????# ## ! =#######??? ??????????????? | | ?????## # ##?????????? ?????????????? | | ###### ###??????????? ?????????????? | | ##?????????????? ????????????? | | ##??????????????? ???????????? | | #############????????????????? ??????????? | | ?????????????????##########??? ??????????? | | ?????????????????# #??? ?????????? | | ?????????????????# """ """ #??? ????????? | | ##????????????#### """ """ #???? ??????????? | | ##???????????# """ """ #???????????????? | | ######??????# ## #???????????????? | | ## ##?????# ## """ #???????????????? | | ####### ## """ #???????????????? | | ## """ #???????????????? | | < ######### #???????????????? | | #???????###########???????????????? | | #### ##?????????????????????????????????? | | ???######??????????????????????????????????? | | ???????????????????????????????????????????? | | | +----------------------------------------------------+ Best States ------------- Heat Dissipation 25 Energy Generation 10 Energy Capacity 250 Matter Stores 304 Matter Capacity 450 Sight Range 16 Terrain Scan Range 16 Terrain Scan Density 10 Evasion (%) 40 Recoil Reduction 2 Item Schematics ----------------- None Robot Schematics ------------------ M-13 Machinist | -10/Materials | Hacked Fabricated ------------ Nothing Alien Tech Used ----------------- None Achievements -------------- None Challenges ------------ None Game ------ Seed SubdwellerTachyonSpecial Manual? 0 Play Time 00:14:56 Cumulative 424.4 hours Start 2023.08.24 @ 13:16:35 End 2023.08.24 @ 15:13:17 Sessions 3 Manual Loads 0 Difficulty Rogue Special Mode None Game No. 188 Rogue 188 Adventurer 0 Explorer 0 Win Type - Total 10 Types 7/0/1/1/0/0/0/1/0 Lore% 86 Gallery% 92 Achievement% 71 Wizard Run 0 Options --------- ASCII 1 Keyboard 1 Movement Vi Keybinds 0 Fullscreen 2 Font 14/SmallcapsGlow Map View 72x54 Tactical HUD 1 Map Filters NONE Filters NONE Steam 0 RUN: 483d3294-ff70-4db5-a379-dc95d8461dbc